Workbook

Sheet 2018
A1: 2018年政府采购结转执行情况表（至2019年5月31日）
A2: 序号 | B2: 项目代码 | C2: 项目名称 | D2: 2018年财政结转金额 | E2: 已执行金额 | F2: 执行率 | G2: 执行部门
A3: 1 | B3: 2161285 | C3: CZ17(2017专)中央财政支持高校项目配套(新闻传播学院实验室等设施建设) | D3: 11,900.00 | E3: 0.00 | F3: =E3/D3 -> 0.00% | G3: 教务处
A4: 4 | B4: 2161509 | C4: xz2015年省级品牌专业建设工程经费项目配套 | D4: 7,637.17 | E4: 0.00 | F4: =E4/D4 -> 0.00% | G4: 教务处
A5: 5 | B5: 2161618 | C5: J专业教室及琴房改造项目（音乐学院） | D5: 89,800.17 | E5: 0.00 | F5: 0.00% | G5: 教务处
A6: 6 | B6: 2161619 | C6: J小型原声音乐厅改造项目（音乐学院） | D6: 758.60 | E6: 0.00 | F6: 0.00% | G6: 教务处
A7: 7 | B7: 2161644 | C7: 环境科学学院实验室建设项目（环境科学学院） | D7: 1,000.00 | E7: 0.00 | F7: 0.00% | G7: 教务处
A8: 8 | B8: 2161703 | C8: CZ17 （内）2017年实验室辅助器具设施及设备（内） | D8: 18,606.00 | E8: 0.00 | F8: 0.00% | G8: 教务处
A9: 9 | B9: 2161707 | C9: CZ17 信息工程学院2017实验室项目经费 | D9: 72,153.88 | E9: 0.00 | F9: 0.00% | G9: 教务处
A10: 10 | B10: 2161708 | C10: CZ17 电子工程学院2017实验室项目经费 | D10: 995,327.00 | E10: 0.00 | F10: 0.00% | G10: 教务处
A11: 11 | B11: 2161711 | C11: CZ17 美术学院2017实验室项目经费 | D11: 119,395.04 | E11: 0.00 | F11: 0.00% | G11: 教务处
A12: 12 | B12: 2161802 | C12: CZ18（专）智慧教室二期建设和网络建设项目 | D12: 8,436,579.00 | E12: 5,345,131.50 | F12: =E12/D12 -> 63.36% | G12: 教务处
A13: 13 | B13: 2170026 | C13: CZ（内）校内零星修缮专项 | D13: 692,555.40 | E13: 0.00 | F13: =E13/D13 -> 0.00% | G13: 后勤管理处
A14: 14 | B14: 2170039 | C14: 雨污分流工程项目 | D14: 2,900,000.00 | E14: 0.00 | F14: 0.00% | G14: 后勤管理处
A15: 15 | B15: 2170102 | C15: 新增学生宿舍改造项目和经费（2016年） | D15: 13,400.00 | E15: 0.00 | F15: 0.00% | G15: 后勤管理处
A16: 16 | B16: 2171602 | C16: CZ16行政楼二楼小型学术报告厅改造专项 | D16: 1,300,000.00 | E16: 0.00 | F16: 0.00% | G16: 后勤管理处
A17: 17 | B17: 2171604 | C17: CZ16体育学院设施改造项目 | D17: 87,170.82 | E17: 0.00 | F17: 0.00% | G17: 后勤管理处
A18: 18 | B18: 2171701 | C18: CZ17 物业管理服务 | D18: 431,294.07 | E18: 0.00 | F18: 0.00% | G18: 后勤管理处
A19: 19 | B19: 2171709 | C19: CZ17 后勤教工餐厅加装电梯专项 | D19: 2,646,996.31 | E19: 0.00 | F19: 0.00% | G19: 后勤管理处
A20: 20 | B20: 2171801 | C20: CZ18 物业管理服务 | D20: 2,597,276.76 | E20: 646,194.13 | F20: =E20/D20 -> 24.88% | G20: 后勤管理处
A21: 22 | B21: 2200046 | C21: 财务软件费用 | D21: 96,000.00 | E21: 75,998.00 | F21: =E21/D21 -> 79.16% | G21: 财务处
A22: 23 | B22: 2221701 | C22: CZ17 电子资源（中外文数据库） | D22: 49,009.00 | E22: 0.00 | F22: =E22/D22 -> 0.00% | G22: 图书馆
A23: 24 | B23: 2221702 | C23: CZ17 图书购置 | D23: 1,536.37 | E23: 0.00 | F23: 0.00% | G23: 图书馆
A24: 25 | B24: 2221703 | C24: CZ17(专)图书馆设备更新、升级、改造 | D24: 15,000.00 | E24: 0.00 | F24: 0.00% | G24: 图书馆
A25: 26 | B25: 2231294 | C25: CZ18(2018专)中央财政支持高校项目配套（江苏省重点建设实验室设施建设） | D25: 3,181,500.00 | E25: 909,000.00 | F25: 28.57% | G25: 科研处
A26: 27 | B26: 2231802 | C26: CZ18(专) 科研硬件设施购置费 | D26: 959,131.77 | E26: 388,404.88 | F26: =E26/D26 -> 40.50% | G26: 科研处
A27: 28 | B27: 2281701 | C27: 成人教育信息化管理平台 | D27: 20,250.00 | E27: 0.00 | F27: =E27/D27 -> 0.00% | G27: 教师发展学院
A28: 29 | B28: 2301702 | C28: CZ17 便携式计算机 | D28: 12,880.00 | E28: 0.00 | F28: 0.00% | G28: 国资处
A29: 30 | B29: 2301703 | C29: CZ17 打印机 | D29: 7,926.00 | E29: 0.00 | F29: 0.00% | G29: 国资处
A30: 31 | B30: 2301704 | C30: CZ17 复印机 | D30: 10,800.00 | E30: 0.00 | F30: 0.00% | G30: 国资处
A31: 32 | B31: 2301705 | C31: CZ17 空调 | D31: 5,810.00 | E31: 0.00 | F31: 0.00% | G31: 国资处
A32: 33 | B32: 2301706 | C32: CZ17 投影仪 | D32: 30,400.00 | E32: 0.00 | F32: 0.00% | G32: 国资处
A33: 34 | B33: 2301708 | C33: CZ17(专) 公用房管理系统 | D33: 49,600.00 | E33: 0.00 | F33: 0.00% | G33: 国资处
A34: 35 | B34: 2301801 | C34: CZ18（专）办公科研用计算机 | D34: 1,606,790.00 | E34: 133,980.00 | F34: =E34/D34 -> 8.34% | G34: 国资处
A35: 36 | B35: 2301802 | C35: CZ18（专）便携式计算机 | G35: 国资处
A36: 37 | B36: 2301803 | C36: CZ18（专）激光打印机 | D36: 4,185.00 | E36: 3,960.00 | F36: =E36/D36 -> 94.62% | G36: 国资处
A37: 38 | B37: 2301804 | C37: CZ18（专）空调 | D37: 23,358.00 | E37: 20,818.00 | F37: =E37/D37 -> 89.13% | G37: 国资处
A38: 39 | B38: 2331801 | C38: CZ18（专）数字化校园四期软件开发 | D38: 3,326,000.00 | E38: 1,374,000.00 | F38: =E38/D38 -> 41.31% | G38: 信息化建设与管理办公室
A39: 40 | B39: 2171706、2171707 | C39: CZ17(2017专)中央财政支持高校项目(教室桌椅、学生宿舍家具和开水器更换) | D39: 21,592.00 | E39: 0.00 | F39: =E39/D39 -> 0.00% | G39: 后勤管理处
A40: 41 | B40: 2221801、2221802 | C40: CZ18(2018专)中央财政支持高校项目（图书采购） | D40: 798,464.54 | E40: 701,162.07 | F40: =E40/D40 -> 87.81% | G40: 图书馆
A41: 42 | B41: 2161288 | C41: CZ18(2018专)中央财政支持高校项目（教师院STEAM教育实验室设施建设） | D41: 689,020.62 | E41: 466,719.60 | F41: =E41/D41 -> 67.74% | G41: 教务处
A42: 43 | B42: 2161288 | C42: CZ18(2018专)中央财政支持高校项目（教师院STEAM教育实验室设施建设） | D42: 1,704,000.00 | F42: 0.00% | G42: 教务处
A43: 44 | B43: 2161289 | C43: CZ18(2018专)中央财政支持高校项目配套（工科楼配套工科实验室设施建设） | D43: 2,824,160.00 | E43: 1,185,050.00 | F43: 41.96% | G43: 教务处
A44: 45 | B44: 2161289 | C44: CZ18(2019专)中央财政支持高校项目配套（工科楼配套工科实验室设施建设） | D44: 2,934,900.00 | F44: 0.00% | G44: 教务处
A45: 46 | B45: 2171802 | C45: CZ18(2018专)中央财政支持高校项目（家具、桌椅及开水器项目） | D45: 6,327,046.80 | E45: 621,400.00 | F45: 9.82% | G45: 后勤管理处
A46: 47 | B46: 2161291 | C46: CZ18(2018专)中央财政支持高校项目配套（功能材料重点实验室设施建设） | D46: 1,690,000.00 | E46: 0.00 | F46: 0.00% | G46: 教务处
A47: 48 | B47: 2161295 | C47: CZ18(2018专)中央财政支持高校项目配套（音乐学院乐器购置） | D47: 2,200,000.00 | E47: 0.00 | F47: 0.00% | G47: 教务处
A48: 49 | B48: 合计 | D48: =SUM(D3:D47) -> 49,011,210.32 | E48: =SUM(E3:E47) -> 11,871,818.18 | F48: =E48/D48 -> 24.22%

Sheet 2019
A1: 2019年政府采购执行情况表（至2019年5月31日）
A2: 序号 | B2: 项目代码 | C2: 项目名称 | D2: 预算金额 | E2: 已执行金额 | F2: 执行部门 | G2: 执行率
A3: 1 | B3: 2171901 | C3: CZ19 物业管理服务 | D3: 11,650,000.00 | E3: 0.00 | F3: 后勤处 | G3: =E3/D3 -> 0.00%
A4: 2 | B4: 2171902 | C4: CZ19（专） 物业管理服务 | D4: 5,650,000.00 | E4: 1,310,592.48 | F4: 国资 | G4: =E4/D4 -> 23.20%
A5: 3 | B5: 2171903 | C5: CZ19 教学桌椅采购 | D5: 27,300.00 | E5: 0.00 | F5: 后勤处 | G5: 0.00%
A6: 4 | B6: 2171904 | C6: CZ19 地下管网改造工程 | D6: 6,000,000.00 | E6: 2,075,420.00 | F6: 后勤处 | G6: 34.59%
A7: 5 | B7: 2171905 | C7: CZ19 教学桌椅采购 | D7: 27,300.00 | E7: 0.00 | F7: 后勤处 | G7: 0.00%
A8: 6 | B8: 2221901 | C8: CZ19（专）图书资源购置费 | D8: 7,670,800.00 | E8: 0.00 | F8: 图书馆 | G8: 0.00%
A9: 7 | B9: 2301901 | C9: CZ19（专） PC服务器 | D9: 225,000.00 | E9: 0.00 | F9: 国资 | G9: 0.00%
A10: 8 | B10: 2301902 | C10: CZ19（专） 空调 | D10: 2,364,000.00 | E10: 145,582.00 | F10: 国资 | G10: 6.16%
A11: 9 | B11: 2301903 | C11: CZ19（专） 投影仪 | D11: 200,000.00 | E11: 0.00 | F11: 国资 | G11: 0.00%
A12: 10 | B12: 2301904 | C12: CZ19（专） 计算机 | D12: 2,300,000.00 | E12: 84,946.00 | F12: 国资 | G12: 3.69%
A13: 11 | B13: 2301905 | C13: CZ19（专） 打印机 | D13: 424,500.00 | E13: 90,504.99 | F13: 国资 | G13: 21.32%
A14: 12 | B14: 2301906 | C14: CZ19（专） 舞台音响设备 | D14: 90,000.00 | E14: 0.00 | F14: 国资 | G14: 0.00%
A15: 13 | B15: 2301907 | C15: CZ19（专） 单反数码摄像机 | D15: 102,000.00 | E15: 24,447.00 | F15: 国资 | G15: 23.97%
A16: 14 | B16: 2301908 | C16: CZ19（专） 显示器 | D16: 60,000.00 | E16: 0.00 | F16: 国资 | G16: 0.00%
A17: 15 | B17: 2301909 | C17: CZ19（专） 普通复印机 | D17: 80,000.00 | E17: 0.00 | F17: 国资 | G17: 0.00%
A18: 16 | B18: 2301910 | C18: CZ19（专） 高速扫描仪 | D18: 35,000.00 | E18: 0.00 | F18: 国资 | G18: 0.00%
A19: 17 | B19: 2301911 | C19: CZ19（专） 单反数码相机 | D19: 195,000.00 | E19: 44,862.05 | F19: 国资 | G19: 23.01%
A20: 18 | B20: 2301912 | C20: CZ19（专） 科研设备费 | D20: 211,000.00 | E20: 0.00 | F20: 国资 | G20: 0.00%
D21: =SUM(D3:D20) -> 37,311,900.00 | E21: =SUM(E3:E20) -> 3,776,354.52
